bitfinex/quotes_BTCUSD_20240629
["timestamp","ask_amount","ask_price","bid_price","bid_amount"]
[1719659329038,1.69747971,61074.0,61073.0,0.003924]
[1719659335299,1.39797271,61074.0,61073.0,0.003924]
[1719659335503,1.235639,61074.0,61073.0,0.106324]
[1719659336493,1.18007,61074.0,61073.0,0.106324]
[1719659339078,0.196,61074.0,61073.0,0.106324]
[1719659339246,1.623143,61074.0,61073.0,0.106324]
[1719659339455,1.723143,61074.0,61073.0,0.1226112]
[1719659339655,1.723143,61074.0,61073.0,0.106324]
[1719659341565,1.723143,61074.0,61073.0,0.20398316]
[1719659342149,1.477522,61074.0,61073.0,0.20398316]
[1719659342353,0.745504,61074.0,61073.0,0.20398316]
[1719659345714,0.745504,61074.0,61073.0,0.184024]
[1719659345930,0.745504,61074.0,61073.0,0.20398316]
[1719659346251,0.745504,61074.0,61073.0,0.22027066]
[1719659350723,0.4363143,61074.0,61073.0,0.22027066]
[1719659350916,0.096,61074.0,61073.0,0.22027066]
[1719659351123,0.096,61074.0,61073.0,0.20398316]
[1719659351556,0.880956,61074.0,61073.0,0.20398316]
[1719659352848,0.980956,61074.0,61073.0,0.20398316]
[1719659355315,0.981796,61074.0,61073.0,0.20398316]
[1719659357633,0.947572,61074.0,61073.0,0.20398316]
[1719659357828,0.947572,61074.0,61073.0,0.184024]
[1719659358323,0.947572,61074.0,61073.0,0.20398316]
[1719659359299,0.903527,61074.0,61073.0,0.20398316]
[1719659362989,0.895527,61074.0,61073.0,0.20398316]
[1719659368122,0.674153,61074.0,61073.0,0.20398316]
[1719659368345,0.674153,61074.0,61073.0,0.22026907]
[1719659369798,0.608553,61074.0,61073.0,0.22026907]
[1719659371946,0.598553,61074.0,61073.0,0.22026907]
[1719659375800,0.18684,61074.0,61073.0,0.22026907]
[1719659376210,0.18684,61074.0,61073.0,0.20398316]
[1719659376601,0.808626,61074.0,61073.0,0.20398316]
[1719659376803,0.18684,61074.0,61073.0,0.22026911]
[1719659376998,0.18684,61074.0,61073.0,0.20398316]
[1719659377183,0.708626,61074.0,61073.0,0.20398316]
[1719659377387,0.808626,61074.0,61073.0,0.22026911]
[1719659382081,0.789189,61074.0,61073.0,0.22026911]
[1719659387677,0.789189,61074.0,61073.0,0.20030995]
[1719659387875,0.789189,61074.0,61073.0,0.0169187]
[1719659388076,0.886589,61074.0,61073.0,0.0169187]
[1719659391095,0.61226185,61074.0,61073.0,0.0169187]
[1719659391416,0.70826185,61074.0,61073.0,0.0169187]
[1719659393305,0.80826185,61074.0,61073.0,0.0169187]
[1719659393682,0.71086185,61074.0,61073.0,0.0169187]
[1719659394101,0.80826185,61074.0,61073.0,0.00063275]
[1719659394293,0.71086185,61074.0,61073.0,0.09943275]
[1719659394693,0.71086185,61074.0,61073.0,0.11571959]
[1719659397614,0.0719,61073.0,61064.0,0.00104088]
[1719659397850,0.096,61065.0,61064.0,0.00104088]
[1719659398024,0.096,61065.0,61063.0,0.1836]
[1719659398025,1.429841,61065.0,61063.0,0.18025733]
[1719659398264,0.1,61064.0,61063.0,0.18025733]
[1719659398440,0.096,61065.0,61064.0,0.01426289]
[1719659398653,1.467997,61065.0,61063.0,0.19452235]
[1719659398805,0.1,61064.0,61063.0,0.18025733]
[1719659399017,0.096,61065.0,61064.0,0.01426289]
[1719659399263,1.467997,61065.0,61063.0,0.19452235]
[1719659399465,0.1,61064.0,61063.0,0.18025733]
[1719659399860,0.1,61064.0,61063.0,0.20021649]
[1719659400273,0.1,61064.0,61063.0,0.18025733]
[1719659400463,0.097,61065.0,61063.0,0.18025733]
[1719659400666,0.096,61065.0,61063.0,0.18025733]
[1719659400992,0.096,61065.0,61063.0,0.20021649]
[1719659401164,0.001,61064.0,61063.0,0.18025733]
[1719659401357,0.096,61065.0,61064.0,0.01995916]
[1719659401543,0.097,61065.0,61064.0,0.01995916]
[1719659401744,0.098,61065.0,61064.0,0.01995916]
[1719659402009,1.532944,61065.0,61064.0,0.01995916]
[1719659402128,1.432944,61065.0,61064.0,0.01995916]
[1719659402332,0.197,61065.0,61064.0,0.01995916]
[1719659402543,1.532944,61065.0,61064.0,0.01995916]
[1719659403723,1.533944,61065.0,61064.0,0.01995916]
[1719659408164,1.533944,61065.0,61063.0,0.20021649]
[1719659408397,0.198,61065.0,61064.0,0.01995916]
[1719659408576,1.557688,61065.0,61064.0,0.01995916]
[1719659408782,1.557688,61065.0,61064.0,0.03422205]
[1719659408984,1.557688,61065.0,61064.0,0.01995916]
[1719659409244,1.556688,61065.0,61064.0,0.01995916]
[1719659409434,1.556688,61065.0,61064.0,0.02811916]
[1719659409642,1.557688,61065.0,61064.0,0.02811916]
[1719659410928,1.521408,61065.0,61064.0,0.02811916]
[1719659411143,1.315077,61065.0,61064.0,0.02811916]
[1719659411368,1.177066,61065.0,61064.0,0.02811916]
[1719659411471,1.273066,61065.0,61064.0,0.02811916]
[1719659411878,1.150566,61065.0,61064.0,0.12571916]
[1719659412774,1.150566,61065.0,61064.0,0.20771916]
[1719659412926,0.593596,61065.0,61064.0,0.18776]
[1719659413252,0.689596,61065.0,61064.0,0.22198586]
[1719659417480,0.41581292,61065.0,61064.0,0.22198586]
[1719659417832,0.096,61065.0,61064.0,0.22198586]
[1719659418339,0.096,61065.0,61064.0,0.20771916]
[1719659419034,0.858712,61065.0,61064.0,0.20771916]
[1719659419234,0.858712,61065.0,61064.0,0.22198996]
[1719659422505,0.785019,61065.0,61064.0,0.22198996]
[1719659422682,0.728247,61065.0,61064.0,0.22198996]
[1719659425657,0.828247,61065.0,61064.0,0.22198996]
[1719659430602,0.828247,61065.0,61056.0,0.075634]
[1719659430813,0.1,61065.0,61064.0,0.01337888]
[1719659431062,0.196,61065.0,61059.0,0.01]
[1719659431268,0.096,61060.0,61059.0,0.01]
[1719659431476,0.096,61060.0,61058.0,0.01]
[1719659431710,0.096,61059.0,61058.0,0.01]
[1719659432966,0.096,61059.0,61056.0,0.73797298]
[1719659433338,0.097,61059.0,61058.0,0.001]
[1719659433541,0.097,61059.0,61058.0,0.1794]
[1719659433542,0.098,61059.0,61058.0,0.1794]
[1719659434632,0.098,61059.0,61058.0,0.1784]
[1719659434792,0.097,61059.0,61058.0,0.1784]
[1719659435396,0.098,61059.0,61058.0,0.1784]
[1719659435587,0.096,61059.0,61058.0,0.1784]
[1719659435810,0.097,61059.0,61058.0,0.1794]
[1719659435983,0.098,61059.0,61058.0,0.1794]
[1719659436194,0.098,61059.0,61058.0,0.1894]
[1719659436398,0.098,61059.0,61058.0,0.1794]
[1719659438044,0.098,61059.0,61058.0,0.19598545]
[1719659442809,0.098,61059.0,61058.0,0.20598545]
[1719659455141,0.098,61059.0,61058.0,0.19598545]
[1719659456218,0.671215,61059.0,61058.0,0.03220045]
[1719659456434,1.000501,61059.0,61058.0,0.03220045]
[1719659456640,1.229787,61059.0,61058.0,0.03220045]
[1719659457189,1.688359,61059.0,61058.0,4.5e-07]
[1719659457391,1.688359,61059.0,61058.0,7.6e-07]
[1719659457589,1.031818,61057.0,61056.0,0.73797298]
[1719659457795,1.361111,61057.0,61056.0,0.73797298]
[1719659457996,1.590404,61057.0,61056.0,0.73797298]
[1719659458419,1.590404,61057.0,61056.0,0.75255528]
[1719659459237,1.591404,61057.0,61056.0,0.85025528]
[1719659460349,1.592404,61057.0,61056.0,0.92965528]
[1719659465633,1.592404,61057.0,61056.0,0.91965528]
[1719659466406,1.75473771,61057.0,61056.0,0.92965528]
[1719659466604,1.75473771,61057.0,61056.0,0.91965528]
[1719659467683,1.75473771,61057.0,61056.0,0.92965528]
[1719659468092,1.592404,61057.0,61056.0,0.92965528]
[1719659468385,1.592404,61057.0,61056.0,0.91965528]
[1719659468741,1.592404,61057.0,61056.0,0.92965528]
[1719659470363,1.592404,61057.0,61056.0,0.92515879]
[1719659470997,1.592404,61057.0,61056.0,0.91515879]
[1719659471311,1.592404,61057.0,61056.0,0.92515879]
[1719659474718,1.600564,61057.0,61056.0,0.92515879]
[1719659478105,1.76289771,61057.0,61056.0,0.92515879]
[1719659478712,1.600564,61057.0,61056.0,0.92515879]
[1719659483483,1.695464,61057.0,61056.0,0.73805879]
[1719659484507,1.600564,61057.0,61056.0,0.73805879]
[1719659485402,1.600564,61057.0,61056.0,0.73898279]
[1719659485626,1.601404,61057.0,61056.0,0.73898279]
[1719659486917,1.601404,61057.0,61056.0,0.74898279]
[1719659494151,1.601404,61057.0,61056.0,0.73898279]
[1719659494433,1.601404,61057.0,61056.0,0.74898279]
[1719659495596,1.601404,61057.0,61056.0,0.73898279]
[1719659497677,1.601404,61057.0,61056.0,0.74898279]
[1719659498913,1.601404,61057.0,61056.0,0.73898279]
[1719659499791,1.601404,61057.0,61056.0,0.74898279]
[1719659500182,1.601404,61057.0,61056.0,0.84918279]
[1719659501809,1.486758,61057.0,61056.0,0.84918279]
[1719659501975,1.601404,61057.0,61056.0,0.84918279]
[1719659504286,1.601404,61057.0,61056.0,0.84390002]
[1719659504438,1.601404,61057.0,61056.0,0.84187964]
[1719659504764,1.601404,61057.0,61056.0,0.83187964]
[1719659505252,1.601404,61057.0,61056.0,0.84187964]
[1719659505553,1.601404,61057.0,61056.0,0.83187964]
[1719659505787,1.601404,61057.0,61056.0,0.84187964]
[1719659507148,1.57990643,61057.0,61056.0,0.84187964]
[1719659507930,1.57990643,61057.0,61056.0,0.83187964]
[1719659508127,1.57990643,61057.0,61056.0,0.73167964]
[1719659508332,1.57990643,61057.0,61056.0,0.74167964]
[1719659510649,1.57990643,61057.0,61056.0,0.73167964]
[1719659511042,1.66810643,61057.0,61056.0,0.73167964]
[1719659514917,1.66810643,61057.0,61056.0,0.71142927]
[1719659515401,1.66810643,61057.0,61056.0,0.67784528]
[1719659516140,1.65148154,61057.0,61056.0,0.67784528]
[1719659520714,1.56328154,61057.0,61056.0,0.67784528]
[1719659520924,1.65148154,61057.0,61056.0,0.67784528]
[1719659526102,0.1992,61057.0,61052.0,0.0915]
[1719659526470,0.1,61056.0,61055.0,0.5]
[1719659526674,0.196,61056.0,61055.0,0.66233898]
[1719659527380,0.769242,61056.0,61055.0,0.66233898]
[1719659528293,1.458133,61056.0,61055.0,0.66233898]
[1719659528670,1.68743,61056.0,61055.0,0.66233898]
[1719659529479,0.311648,61056.0,61055.0,0.5]
[1719659529733,0.541945,61056.0,61055.0,0.5]
[1719659530050,0.198,61056.0,61049.0,0.00714301]
[1719659530252,0.229316,61051.0,61050.0,0.66233898]
[1719659530448,0.425316,61051.0,61050.0,0.66233898]
[1719659531104,0.539974,61051.0,61050.0,0.66233898]
[1719659531696,0.76929,61051.0,61050.0,0.66233898]
[1719659532057,1.228922,61051.0,61050.0,0.66233898]
[1719659532244,1.687554,61051.0,61050.0,0.66233898]
[1719659533089,1.688554,61051.0,61050.0,0.66233898]
[1719659533607,1.66577766,61051.0,61050.0,0.66233898]
[1719659533939,1.66577766,61051.0,61050.0,0.67602294]
[1719659535808,1.66577766,61051.0,61047.0,0.02077397]
[1719659535809,0.17522366,61051.0,61047.0,0.02077397]
[1719659536008,0.096,61048.0,61044.0,0.7326]
[1719659536207,0.1878,61050.0,61045.0,0.16233898]
[1719659536437,0.096,61046.0,61045.0,0.16233898]
[1719659537498,0.096,61046.0,61045.0,0.25353898]
[1719659537716,0.096,61046.0,61045.0,0.32473898]
[1719659538005,0.098,61046.0,61045.0,0.32473898]
[1719659538869,0.002,61046.0,61045.0,0.32473898]
[1719659539071,0.098,61046.0,61045.0,0.32473898]
[1719659539498,0.002,61046.0,61045.0,0.32473898]
[1719659539737,0.098,61046.0,61045.0,0.40604244]
[1719659541908,0.098,61046.0,61045.0,0.32473898]
[1719659543461,0.098,61046.0,61045.0,0.33797882]
[1719659551892,0.098,61046.0,61045.0,0.33890282]
[1719659553996,0.1903,61046.0,61045.0,0.17650282]
[1719659554196,0.198,61046.0,61045.0,0.17650282]
[1719659556648,0.098,61046.0,61045.0,0.17650282]
[1719659570352,0.002,61046.0,61045.0,0.17650282]
[1719659570576,0.098,61046.0,61045.0,0.17650282]
[1719659576761,0.00478029,61048.0,61045.0,0.17650282]
[1719659576983,0.096,61046.0,61045.0,0.17650282]
[1719659578648,0.097,61046.0,61045.0,0.17650282]
[1719659578851,0.098,61046.0,61045.0,0.17650282]
[1719659580436,0.002,61046.0,61045.0,0.17650282]
[1719659580655,0.098,61046.0,61045.0,0.17650282]
[1719659588217,0.2809,61046.0,61045.0,0.17650282]
[1719659588418,0.3809,61046.0,61045.0,0.17650282]
[1719659589466,0.198,61046.0,61045.0,0.17650282]
[1719659589738,0.098,61046.0,61045.0,0.17650282]
[1719659604394,0.098,61046.0,61045.0,0.01416384]
[1719659604592,0.2809,61046.0,61045.0,0.01416384]
[1719659605015,0.3809,61046.0,61045.0,0.01416384]
[1719659605432,0.3799,61046.0,61045.0,0.01416384]
[1719659605636,0.3799,61046.0,61045.0,0.01516384]
[1719659605842,0.3809,61046.0,61045.0,0.01516384]
[1719659610253,0.09161893,61046.0,61045.0,0.01516384]
[1719659610486,0.098,61046.0,61045.0,0.01516384]
[1719659623742,0.199,61046.0,61045.0,0.01516384]
[1719659623961,0.299,61046.0,61045.0,0.01516384]
[1719659624193,0.198,61046.0,61045.0,0.01516384]
[1719659626334,0.098,61046.0,61045.0,0.01516384]
[1719659628613,0.06844526,61048.0,61045.0,0.01516384]
[1719659628802,0.096,61046.0,61045.0,0.01516384]
[1719659629409,0.096,61046.0,61045.0,0.01416384]
[1719659629858,0.096,61046.0,61045.0,0.01516384]
[1719659630276,0.096,61046.0,61045.0,0.01416384]
[1719659630648,0.097,61046.0,61045.0,0.01516384]
[1719659639875,0.097,61046.0,61045.0,0.20206384]
[1719659640482,0.001,61046.0,61045.0,0.20206384]
[1719659640685,0.097,61046.0,61045.0,0.20206384]
[1719659642116,0.097,61046.0,61045.0,0.36440282]
[1719659644369,0.001,61046.0,61045.0,0.56440282]
[1719659644912,0.097,61046.0,61045.0,0.56440282]
[1719659645082,0.097,61046.0,61045.0,0.6941031]
[1719659646295,0.097,61046.0,61045.0,0.4941031]
[1719659647510,0.097,61046.0,61045.0,0.6941031]
[1719659650872,0.097,61046.0,61045.0,0.7171031]
[1719659655453,0.001,61046.0,61045.0,0.7171031]
[1719659655653,0.097,61046.0,61045.0,0.7171031]
[1719659656480,0.10522,61046.0,61045.0,0.7171031]
[1719659656765,0.20522,61046.0,61045.0,0.7171031]
[1719659666211,0.20522,61046.0,61045.0,0.9171031]
[1719659666212,0.10922,61046.0,61045.0,0.9171031]
[1719659666414,0.00922,61046.0,61045.0,0.9171031]
[1719659666619,0.10922,61046.0,61045.0,0.9171031]
[1719659667047,0.10922,61046.0,61045.0,0.79840656]
[1719659667249,0.10922,61046.0,61045.0,0.99840656]
[1719659667786,0.00922,61046.0,61045.0,0.79840656]
[1719659668825,0.00922,61046.0,61045.0,0.99840656]
[1719659669441,0.00922,61046.0,61045.0,0.9171031]
[1719659670435,0.10922,61046.0,61045.0,0.9171031]
[1719659672715,0.00922,61046.0,61045.0,0.9171031]
[1719659675358,0.00922,61046.0,61045.0,0.7171031]
[1719659675561,0.00922,61046.0,61045.0,0.9171031]
[1719659676135,0.00922,61046.0,61045.0,1.2171031]
[1719659676354,0.00922,61046.0,61045.0,1.00140282]
[1719659677914,0.00922,61046.0,61045.0,0.80140282]
[1719659679209,0.00922,61046.0,61045.0,1.00140282]
[1719659679566,0.00922,61046.0,61045.0,0.80140282]
[1719659679783,0.00922,61046.0,61045.0,0.70050282]
[1719659687937,0.00922,61046.0,61045.0,0.67750282]
[1719659688144,0.09722,61046.0,61045.0,0.67434819]
[1719659688319,0.09722,61046.0,61045.0,0.67730277]
[1719659691970,0.00922,61046.0,61045.0,0.67730277]
[1719659692173,0.096,61046.0,61045.0,0.67730277]
[1719659694124,0.1041,61046.0,61045.0,0.67730277]
[1719659694423,0.2041,61046.0,61045.0,0.67730277]
[1719659700573,0.1081,61046.0,61045.0,0.67730277]
[1719659700796,0.1041,61046.0,61045.0,0.67730277]
[1719659701000,0.2041,61046.0,61045.0,0.67730277]
[1719659708657,0.3206,61046.0,61045.0,0.67730277]
[1719659719607,0.10032094,61046.0,61045.0,0.67730277]
[1719659721533,0.20032094,61046.0,61045.0,0.67730277]
[1719659722549,0.28662094,61046.0,61045.0,0.67730277]
[1719659727711,0.2823,61046.0,61045.0,0.67730277]
[1719659729403,0.196,61046.0,61045.0,0.67730277]
[1719659735293,0.216,61046.0,61045.0,0.67730277]
[1719659736782,0.2203,61046.0,61045.0,0.67730277]
[1719659737988,0.216,61046.0,61045.0,0.67730277]
[1719659741169,0.196,61046.0,61045.0,0.67730277]
[1719659744313,0.1,61046.0,61045.0,0.67730277]
[1719659744519,0.196,61046.0,61045.0,0.67730277]
[1719659747390,0.2855,61046.0,61045.0,0.67730277]
[1719659748256,0.2839,61046.0,61045.0,0.67730277]
[1719659748872,0.196,61046.0,61045.0,0.67730277]
[1719659750587,0.096,61046.0,61045.0,0.67730277]
[1719659750755,0.09684,61046.0,61045.0,0.67730277]
[1719659751326,0.00084,61046.0,61045.0,0.67730277]
[1719659751866,0.00084,61046.0,61045.0,0.78110277]
[1719659752436,0.09684,61046.0,61045.0,0.78110277]
[1719659770222,0.19684,61046.0,61045.0,0.78110277]
[1719659770661,0.21684,61046.0,61045.0,0.78110277]
[1719659770826,0.19684,61046.0,61045.0,0.78110277]
[1719659772676,0.09684,61046.0,61045.0,0.78110277]
[1719659774019,0.00084,61046.0,61045.0,0.78110277]
[1719659774431,0.09684,61046.0,61045.0,0.78110277]
[1719659775404,1.358182,61046.0,61045.0,0.78110277]
[1719659775608,1.458182,61046.0,61045.0,0.78110277]
[1719659776150,1.687517,61046.0,61045.0,0.78110277]
[1719659776579,1.687517,61046.0,61045.0,0.76806298]
[1719659776971,1.687517,61046.0,61045.0,0.78110448]
[1719659782185,1.687517,61046.0,61040.0,0.1071755]
[1719659782186,0.229354,61041.0,61040.0,0.1071755]
[1719659782391,0.425354,61041.0,61040.0,0.76951448]
[1719659783154,1.686801,61041.0,61040.0,0.76951448]
[1719659783713,1.686801,61041.0,61040.0,0.66233898]
[1719659784135,1.687801,61041.0,61040.0,0.66433898]
[1719659784342,1.688801,61041.0,61040.0,0.66633898]
[1719659785244,1.688801,61041.0,61040.0,0.77423898]
[1719659789764,1.688801,61041.0,61040.0,0.78647629]
[1719659797675,1.592801,61041.0,61040.0,0.78647629]
[1719659797896,1.688801,61041.0,61040.0,0.78647629]
[1719659798131,1.592801,61041.0,61040.0,0.78647629]
[1719659798335,1.688801,61041.0,61040.0,0.78647629]
[1719659800902,1.70983702,61041.0,61040.0,0.78647629]
[1719659801730,1.64056464,61041.0,61040.0,0.78647629]
[1719659805188,1.61952862,61041.0,61040.0,0.78647629]
[1719659805395,1.61952862,61041.0,61040.0,0.12413731]
[1719659805627,1.61952862,61041.0,61040.0,0.62413731]
[1719659816099,1.6194847,61041.0,61040.0,0.62413731]
[1719659820360,1.6194847,61041.0,61040.0,0.70513731]
[1719659821611,1.64142007,61041.0,61040.0,0.70513731]
[1719659823912,1.67163094,61041.0,61040.0,0.70513731]
[1719659828329,1.67163094,61041.0,61040.0,0.62413731]
[1719659828428,1.67163094,61041.0,61040.0,0.51623731]
[1719659829263,1.67063094,61041.0,61040.0,0.61543731]
[1719659829460,1.66963094,61041.0,61040.0,0.61343731]
[1719659829802,1.67063094,61041.0,61040.0,0.61543731]
[1719659830116,1.67163094,61041.0,61040.0,0.61743731]
[1719659830269,1.67163094,61041.0,61040.0,0.51623731]
[1719659842611,1.490846,61039.0,61038.0,0.044891]
[1719659842952,0.1,61039.0,61033.0,0.4675]
[1719659843153,0.89883,61034.0,61033.0,0.4675]
[1719659843362,0.99883,61034.0,61033.0,0.4905]
[1719659844182,1.68697,61034.0,61033.0,0.4905]
[1719659844319,1.68697,61034.0,61033.0,0.4675]
[1719659844499,1.68697,61034.0,61033.0,0.491424]
[1719659844910,1.68697,61034.0,61033.0,0.65376298]
[1719659845530,1.68697,61034.0,61033.0,0.08795498]
[1719659845767,1.68897,61034.0,61033.0,0.13271498]
[1719659845968,1.68897,61034.0,61033.0,0.22291498]
[1719659846261,1.68897,61034.0,61033.0,0.72291498]
[1719659847431,1.68897,61034.0,61033.0,0.7005]
[1719659847691,1.68897,61034.0,61033.0,0.6103]
[1719659848094,1.88967,61034.0,61033.0,0.5]
[1719659848220,1.88867,61034.0,61033.0,0.5]
[1719659848424,1.88767,61034.0,61033.0,0.5]
[1719659848633,1.77847,61034.0,61033.0,0.5]
[1719659849000,1.77947,61034.0,61033.0,0.51153185]
[1719659849199,1.77747,61034.0,61033.0,0.51153185]
[1719659849310,1.77947,61034.0,61033.0,0.51153185]
[1719659849727,1.68897,61034.0,61033.0,0.51153185]
[1719659855563,1.68897,61034.0,61022.0,0.476729]
[1719659855564,1.491191,61025.0,61024.0,8.5e-07]
[1719659855674,1.591191,61025.0,61024.0,0.63796976]
[1719659855879,1.591191,61025.0,61024.0,0.83796976]
[1719659856083,1.591191,61025.0,61024.0,1.03226976]
[1719659856084,1.687191,61025.0,61024.0,1.03226976]
[1719659856893,1.688191,61025.0,61024.0,1.23226976]
[1719659857380,1.688191,61025.0,61024.0,1.03226976]
[1719659857796,1.688191,61025.0,61024.0,1.23226976]
[1719659858191,1.688191,61025.0,61024.0,1.03226976]
[1719659859084,1.592191,61025.0,61024.0,1.03226976]
[1719659859282,1.688191,61025.0,61024.0,1.03226976]
[1719659859409,1.688191,61025.0,61024.0,1.23226976]
[1719659859813,1.689191,61025.0,61024.0,1.03226976]
[1719659861471,1.689191,61025.0,61024.0,1.23226976]
[1719659861634,1.689191,61025.0,61024.0,1.03226976]
[1719659861835,1.689191,61025.0,61024.0,1.23226976]
[1719659863113,1.689191,61025.0,61024.0,1.24310463]
[1719659867905,1.689191,61025.0,61024.0,1.04310463]
[1719659869534,1.689191,61025.0,61024.0,1.24310463]
[1719659869759,1.689191,61025.0,61024.0,1.04310463]
[1719659870002,1.689191,61025.0,61024.0,1.24310463]
[1719659870496,1.71105471,61025.0,61024.0,1.24310463]
[1719659870619,1.71105471,61025.0,61024.0,0.51083572]
[1719659871426,1.71005471,61025.0,61024.0,0.51083572]
[1719659871834,1.71105471,61025.0,61024.0,0.51083572]
[1719659872035,1.68840664,61025.0,61024.0,0.51083572]
[1719659872615,1.68740664,61025.0,61024.0,0.51083572]
[1719659872774,1.68840664,61025.0,61024.0,0.51083572]
[1719659873738,1.68840664,61025.0,61024.0,0.66233983]
[1719659873739,1.59240664,61025.0,61024.0,0.66233983]
[1719659873915,1.68840664,61025.0,61024.0,0.86827562]
[1719659874055,1.68840664,61025.0,61024.0,1.06827562]
[1719659880374,1.59634771,61025.0,61024.0,1.06827562]
[1719659880568,1.71105471,61025.0,61024.0,1.06827562]
[1719659881791,1.71105471,61025.0,61024.0,0.86827562]
[1719659883433,1.71105471,61025.0,61024.0,0.67317562]
[1719659885250,1.71105471,61025.0,61024.0,0.67317562]
[1719659885970,1.71105471,61025.0,61024.0,0.51083664]
[1719659886552,2.31177371,61025.0,61024.0,0.51083664]
[1719659887563,1.71105471,61025.0,61024.0,0.51083664]
[1719659887746,3.41021571,61025.0,61024.0,0.51083664]
[1719659888128,3.40921571,61025.0,61024.0,0.51083664]
[1719659888503,3.41021571,61025.0,61024.0,0.51083664]
[1719659889066,3.40921571,61025.0,61024.0,0.51083664]
[1719659889248,3.41021571,61025.0,61024.0,0.51083664]
[1719659890005,3.41021571,61025.0,61024.0,0.51899664]
[1719659892050,3.51391571,61025.0,61024.0,0.50816085]
[1719659894770,3.60211571,61025.0,61024.0,0.50816085]
[1719659894967,3.60211571,61025.0,61016.0,0.373964]
[1719659894968,1.491386,61017.0,61016.0,0.1083]
[1719659895171,1.587386,61017.0,61016.0,0.27063898]
[1719659895521,1.687386,61017.0,61016.0,0.17319593]
[1719659896581,1.688386,61017.0,61016.0,0.17319593]
[1719659896752,1.689386,61017.0,61016.0,0.17319593]
[1719659897171,1.688386,61017.0,61016.0,0.17319593]
[1719659897372,1.687386,61017.0,61016.0,0.17319593]
[1719659897528,1.688386,61017.0,61016.0,0.17319593]
[1719659897729,1.689386,61017.0,61016.0,0.17319593]
[1719659898557,1.689386,61017.0,61016.0,0.01085695]
[1719659898807,1.689386,61017.0,61016.0,9.5e-07]
[1719659899136,1.26198,61015.0,61014.0,0.1083]
[1719659899337,1.36198,61015.0,61014.0,0.27063898]
[1719659900390,1.36298,61015.0,61014.0,0.27063898]
[1719659900546,1.36398,61015.0,61014.0,0.27063898]
[1719659902330,1.491457,61014.0,61013.0,0.5]
[1719659902471,1.687457,61014.0,61013.0,0.5]
[1719659903507,1.688457,61014.0,61013.0,0.5]
[1719659903714,1.689457,61014.0,61013.0,0.5]
[1719659906235,1.688457,61014.0,61013.0,0.5]
[1719659906441,1.591457,61014.0,61013.0,0.6109]
[1719659906639,1.591457,61014.0,61013.0,0.7116941]
[1719659906640,1.688457,61014.0,61013.0,0.7116941]
[1719659906845,1.689457,61014.0,61013.0,0.7116941]
[1719659908684,1.689457,61014.0,61013.0,0.6210941]
[1719659908826,1.689457,61014.0,61013.0,0.5101941]
[1719659909445,1.689457,61014.0,61013.0,0.5111181]
[1719659911717,1.689457,61014.0,61013.0,0.7111181]
[1719659911878,1.689457,61014.0,61013.0,0.5111181]
[1719659916058,1.689457,61014.0,61013.0,0.7111181]
[1719659916872,1.593457,61014.0,61013.0,0.7111181]
[1719659917001,1.689457,61014.0,61013.0,0.5111181]
[1719659917197,1.689457,61014.0,61013.0,0.8247181]
[1719659920980,1.689457,61014.0,61013.0,0.6247181]
[1719659921431,1.689457,61014.0,61013.0,0.8247181]
[1719659921649,1.689457,61014.0,61013.0,0.6247181]
[1719659922809,1.689457,61014.0,61013.0,0.8247181]
[1719659924145,1.364002,61014.0,61013.0,0.98705708]
[1719659924349,1.134547,61014.0,61013.0,0.98705708]
[1719659924547,1.134547,61014.0,61013.0,1.03333392]
[1719659924746,1.034547,61014.0,61013.0,1.23333392]
[1719659925472,1.130547,61014.0,61013.0,1.23333392]
[1719659925921,1.134547,61014.0,61013.0,1.23333392]
[1719659928001,1.134547,61014.0,61013.0,1.03333392]
[1719659931802,1.134547,61014.0,61013.0,1.23333392]
[1719659932572,1.134547,61014.0,61013.0,1.03333392]
[1719659932777,1.134547,61014.0,61013.0,1.23333392]
[1719659933284,1.134547,61014.0,61013.0,1.03333392]
[1719659934704,1.134547,61014.0,61013.0,1.23333392]
[1719659940125,1.134547,61014.0,61013.0,1.03333392]
[1719659940365,1.134547,61014.0,61013.0,1.23333392]
[1719659946855,1.134547,61014.0,61013.0,1.03333392]
[1719659947058,1.134547,61014.0,61013.0,1.23333392]
[1719659954431,1.134547,61014.0,61013.0,1.43333392]
[1719659954675,1.134547,61014.0,61013.0,1.67905708]
[1719659954676,0.002,61014.0,61013.0,1.67905708]
[1719659954867,0.00084,61026.0,61024.0,0.7]
[1719659955046,0.344961,61025.0,61024.0,1.91184244]
[1719659955192,0.803789,61025.0,61024.0,1.92216732]
[1719659956006,0.803789,61025.0,61024.0,1.72216732]
[1719659956207,0.803789,61025.0,61024.0,1.92216732]
[1719659956634,0.688242,61025.0,61024.0,1.92216732]
[1719659956806,0.902949,61025.0,61024.0,1.92216732]
[1719659957482,0.902949,61025.0,61024.0,1.93616732]
[1719659957483,0.903949,61025.0,61024.0,1.93616732]
[1719659957774,0.904949,61025.0,61024.0,2.12206732]
[1719659958738,0.903949,61025.0,61024.0,2.02676386]
[1719659958937,0.674535,61025.0,61024.0,2.02676386]
[1719659959183,0.674535,61025.0,61024.0,1.81376386]
[1719659959385,0.673535,61025.0,61024.0,1.81376386]
[1719659959944,0.673535,61025.0,61024.0,2.01376386]
[1719659960110,0.902949,61025.0,61024.0,2.02776386]
[1719659960340,0.902949,61025.0,61024.0,1.93726386]
[1719659961101,0.903949,61025.0,61024.0,1.95126386]
[1719659964145,0.903949,61025.0,61024.0,2.04176386]
[1719659968918,0.903949,61025.0,61024.0,2.10741186]
[1719659978193,0.904789,61025.0,61024.0,2.10741186]
[1719659986768,0.904789,61025.0,61024.0,1.90741186]
[1719659986972,0.345961,61025.0,61024.0,2.30741186]
[1719659987334,0.345961,61025.0,61024.0,2.44368282]
[1719659987741,0.345961,61025.0,61024.0,2.42968282]
[1719659988003,0.344961,61025.0,61024.0,2.42968282]
[1719659988230,0.344961,61025.0,61024.0,2.42868282]
[1719659988231,0.345961,61025.0,61024.0,2.42868282]
[1719659988578,0.575375,61025.0,61024.0,2.42968282]
[1719659988781,0.576375,61025.0,61024.0,2.44268282]
[1719659989010,0.576375,61025.0,61024.0,2.42868282]